bitfinex/quotes_ETHUSD_20250219
["timestamp","ask_amount","ask_price","bid_price","bid_amount"]
[1739983311616,0.7531,2707.2,2706.8,0.84866085]
[1739983311930,0.04689608,2707.1,2706.8,0.84866085]
[1739983312953,0.04689608,2707.1,2707.0,3.69412]
[1739983313158,0.7789,2707.5,2707.0,3.69412]
[1739983313517,0.04713726,2707.4,2707.0,3.69412]
[1739983313849,0.04713726,2707.4,2706.9,4.48406]
[1739983314054,0.04713726,2707.4,2707.0,1.07027209]
[1739983315021,0.04713726,2707.4,2706.9,8.17816]
[1739983315549,3.74078726,2707.4,2706.8,6.21866085]
[1739983315959,3.74078726,2707.4,2706.8,9.91297085]
[1739983316158,0.04713726,2707.4,2707.0,3.69406]
[1739983316652,0.04713726,2707.4,2706.9,3.69425]
[1739983316819,0.04713726,2707.4,2706.9,5.45193783]
[1739983317019,0.04713726,2707.4,2707.0,3.69408]
[1739983317227,0.04713726,2707.4,2707.1,3.69392]
[1739983317450,0.04713726,2707.4,2707.2,3.69382]
[1739983318743,0.04713726,2707.4,2707.3,6.8612774]
[1739983318994,0.04713726,2707.4,2707.3,7.99540714]
[1739983319155,0.7562,2708.1,2707.6,3.69322]
[1739983319451,0.7562,2708.1,2707.6,6.1562]
[1739983319651,0.04546027,2708.0,2707.6,5.37]
[1739983319820,0.7562,2708.1,2707.6,5.37]
[1739983320021,4.44889,2708.1,2707.6,5.37]
[1739983320225,3.69276,2708.0,2707.6,5.37]
[1739983320429,3.73855402,2708.0,2707.6,5.37]
[1739983320630,0.04579402,2708.0,2707.6,5.37]
[1739983321486,3.73857402,2708.0,2707.6,5.37]
[1739983322662,3.69294,2707.9,2707.6,5.37]
[1739983322888,4.50057,2707.7,2707.6,5.37]
[1739983323190,0.85292668,2707.7,2707.6,5.37]
[1739983323949,4.54609668,2707.7,2707.6,5.37]
[1739983324950,4.54609668,2707.7,2707.1,5.37]
[1739983325151,3.69342,2707.6,2707.1,5.37]
[1739983325381,3.69346,2707.5,2707.1,5.37]
[1739983325584,3.73890154,2707.5,2706.9,5.37]
[1739983325875,3.73890154,2707.5,2706.9,9.06413]
[1739983326079,3.73890154,2707.5,2706.9,5.37]
[1739983326243,3.69358,2707.4,2706.9,5.37]
[1739983326585,0.84016056,2707.3,2706.9,5.37]
[1739983326878,0.04356056,2707.3,2707.0,3.6941]
[1739983327088,0.7793,2707.5,2707.0,3.6941]
[1739983327250,0.04365605,2707.4,2707.0,3.6941]
[1739983327451,0.04365605,2707.4,2706.9,11.93364574]
[1739983327662,0.04365605,2707.4,2707.0,3.69406]
[1739983328065,0.04365605,2707.4,2707.0,3.69412]
[1739983328261,0.04365605,2707.4,2707.0,4.52582]
[1739983328986,0.04365605,2707.4,2707.0,1.821282]
[1739983329176,0.04365605,2707.4,2706.9,9.06418]
[1739983329489,0.04365605,2707.4,2706.9,5.37]
[1739983329788,3.73723605,2707.4,2706.9,9.06425]
[1739983330395,3.73723605,2707.4,2706.9,5.37]
[1739983330562,3.69377,2707.3,2706.7,5.37]
[1739983330761,3.69377,2707.3,2706.8,3.69439]
[1739983331063,0.04346506,2707.2,2706.8,3.69439]
[1739983331284,3.69377,2707.3,2706.8,3.69439]
[1739983331482,0.7814,2707.1,2706.7,9.06452]
[1739983331703,0.04327404,2707.0,2706.7,6.726635]
[1739983331862,0.04327404,2707.0,2706.7,10.421145]
[1739983332672,0.04327404,2707.0,2706.7,6.726635]
[1739983332894,0.04327404,2707.0,2706.7,5.37]
[1739983333396,0.04327404,2707.0,2706.7,9.06453]
[1739983333808,0.7814,2707.1,2706.8,3.69435]
[1739983334105,0.7814,2707.1,2706.7,9.06446]
[1739983334899,0.7814,2707.1,2706.8,3.69432]
[1739983335107,0.04332494,2707.0,2706.9,1.22318874]
[1739983335270,0.8232,2707.4,2707.1,3.69391]
[1739983335470,0.04361145,2707.3,2707.1,3.69391]
[1739983335802,0.04361145,2707.3,2707.2,3.69385]
[1739983336302,0.8029,2707.7,2707.3,3.6936]
[1739983336513,0.8029,2707.7,2707.4,4.432314]
[1739983336681,0.8029,2707.7,2707.4,0.738744]
[1739983337379,0.7951,2708.5,2707.4,0.738744]
[1739983337582,4.48765,2708.2,2707.5,4.49504]
[1739983338181,3.69282,2708.0,2707.3,3.1675674]
[1739983338381,3.69318,2707.7,2707.3,5.37]
[1739983338583,4.5188,2707.9,2707.3,5.37]
[1739983338785,1.27768,2707.9,2707.3,9.06365]
[1739983338988,4.43113639,2708.3,2707.5,3.69341]
[1739983339327,0.7826,2708.2,2707.6,3.69326]
[1739983339643,0.7826,2708.2,2707.8,3.69295]
[1739983339644,0.82536564,2708.2,2707.8,3.69295]
[1739983339927,0.82536564,2708.2,2707.6,3.69322]
[1739983340134,0.82536564,2708.2,2707.3,8.5375674]
[1739983340292,0.82536564,2708.2,2707.7,3.69304]
[1739983340477,0.82536564,2708.2,2707.8,3.69303]
[1739983340878,0.82536564,2708.2,2707.7,4.45694]
[1739983341114,0.82536564,2708.2,2707.9,3.69289]
[1739983341286,0.04276564,2708.2,2707.9,3.69289]
[1739983341481,0.8046,2708.5,2708.1,3.69262]
[1739983341684,0.04219906,2708.4,2708.2,3.69248]
[1739983341990,0.04219906,2708.4,2707.9,3.1675674]
[1739983341991,0.8046,2708.7,2708.1,0.8067]
[1739983342192,0.04210365,2708.3,2708.2,3.69239]
[1739983342391,0.8046,2708.7,2708.4,3.69214]
[1739983342794,0.04238986,2708.6,2708.4,3.69214]
[1739983343204,0.04238986,2708.6,2708.2,7.38481]
[1739983343516,0.04238986,2708.6,2708.2,3.69239]
[1739983343931,0.04238986,2708.6,2708.4,3.6922]
[1739983344440,0.04238986,2708.6,2708.4,7.3843]
[1739983344582,0.04238986,2708.6,2708.5,3.69208]
[1739983344783,0.04238986,2708.6,2708.4,3.6921]
[1739983345119,0.8036,2709.0,2708.4,3.6921]
[1739983345332,1.32568267,2709.0,2708.4,7.38424]
[1739983345535,0.042676,2708.9,2708.4,3.6921]
[1739983346446,0.042676,2708.9,2708.4,7.38423]
[1739983346749,0.042676,2708.9,2708.6,3.69187]
[1739983347091,0.042676,2708.9,2708.4,3.69211]
[1739983347643,0.042676,2708.9,2708.4,3.69212]
[1739983347844,0.042676,2708.9,2708.5,3.69207]
[1739983348794,0.042676,2708.9,2708.3,3.69232]
[1739983348999,0.042676,2708.9,2708.3,4.99597874]
[1739983349213,0.042676,2708.9,2708.4,3.69208]
[1739983349530,0.042676,2708.9,2708.5,3.69208]
[1739983349889,0.042676,2708.9,2708.5,4.51528]
[1739983350210,0.042676,2708.9,2708.7,3.69172]
[1739983350392,0.042676,2708.9,2708.8,7.2284094]
[1739983350597,5.36,2709.6,2709.1,4.47767]
[1739983350801,4.46473,2709.7,2709.1,0.7865]
[1739983351007,0.04294154,2709.5,2709.1,0.7865]
[1739983351212,3.6906,2709.6,2709.1,0.7865]
[1739983351415,0.04256327,2709.4,2709.1,0.7865]
[1739983351611,0.04281983,2709.5,2709.1,4.47768]
[1739983351829,0.7742,2709.7,2709.2,3.69103]
[1739983352133,0.7742,2709.7,2709.2,3.6911]
[1739983352308,0.04287277,2709.6,2709.1,3.9540674]
[1739983352816,0.7566,2709.6,2709.1,3.9540674]
[1739983353219,0.04278011,2709.5,2709.2,3.69103]
[1739983353430,0.7566,2709.9,2709.4,3.69077]
[1739983353931,3.68994,2710.1,2709.4,3.69084]
[1739983354133,0.0436369,2709.8,2709.4,3.69084]
[1739983354302,3.68977,2710.2,2709.5,3.69061]
[1739983354501,0.04392272,2710.1,2709.5,3.69061]
[1739983354701,0.04392272,2710.1,2709.6,3.69057]
[1739983354899,0.8238,2710.3,2709.7,3.69044]
[1739983355102,0.04401799,2710.2,2709.7,3.69044]
[1739983355340,0.04401799,2710.2,2709.8,0.8166]
[1739983355498,0.04401799,2710.2,2709.8,4.50688]
[1739983355840,0.8238,2710.3,2709.8,6.18035974]
[1739983356138,0.04394362,2710.2,2710.1,3.68982]
[1739983356436,0.04394362,2710.2,2710.1,9.09671428]
[1739983356645,0.7949,2710.9,2710.2,3.68967]
[1739983356837,0.7949,2710.9,2710.3,3.68962]
[1739983357007,0.04494498,2710.8,2710.3,3.68962]
[1739983357212,0.04494498,2710.8,2710.2,3.68967]
[1739983357412,0.04494498,2710.8,2710.2,7.37936]
[1739983357647,0.04494498,2710.8,2710.1,5.37]
[1739983357648,3.73389498,2710.8,2710.3,4.964536]
[1739983357807,0.04494498,2710.8,2710.3,4.964536]
[1739983358012,0.04494498,2710.8,2710.3,4.964466]
[1739983358343,0.04494498,2710.8,2710.3,4.964546]
[1739983358710,0.04494498,2710.8,2710.4,0.8024]
[1739983358933,3.68855,2711.1,2710.6,6.8566974]
[1739983359135,3.68855,2711.1,2710.4,0.8024]
[1739983359309,3.68884,2710.9,2710.3,5.37]
[1739983359509,3.68912,2710.7,2710.3,5.37]
[1739983359728,0.04470083,2710.6,2710.3,5.37]
[1739983360026,4.46175,2710.8,2710.3,5.37]
[1739983360223,0.7728,2710.8,2710.3,5.37]
[1739983360431,0.04479606,2710.7,2710.3,9.0596]
[1739983360636,0.04479606,2710.7,2710.3,7.04244474]
[1739983360838,0.7728,2710.8,2710.4,3.68948]
[1739983361040,4.46183,2710.8,2710.3,7.04244474]
[1739983361242,0.04479606,2710.7,2710.3,7.04244474]
[1739983361415,0.04479606,2710.7,2710.3,10.73203474]
[1739983361739,0.04470083,2710.6,2710.4,4.76268347]
[1739983362040,3.68895,2710.8,2710.4,1.07320347]
[1739983362249,3.68895,2710.8,2710.3,5.37]
[1739983362630,3.73388606,2710.7,2710.3,5.37]
[1739983362826,0.7899,2710.6,2710.3,5.37]
[1739983363028,4.52384083,2710.6,2710.3,5.37]
[1739983363558,4.52384083,2710.6,2710.0,9.06001]
[1739983363708,8.21319083,2710.6,2710.1,1.05543506]
[1739983363905,4.52384083,2710.6,2710.1,1.05543506]
[1739983364442,8.21314083,2710.6,2710.1,1.05543506]
[1739983364739,4.52384083,2710.6,2710.1,1.05543506]
[1739983365139,3.68935,2710.5,2710.1,1.05543506]
[1739983365446,3.73463985,2710.5,2710.1,1.05543506]
[1739983366731,3.73463985,2710.5,2710.0,5.37]
[1739983366931,0.04528985,2710.5,2710.3,3.68953]
[1739983367135,0.04528985,2710.5,2710.3,3.68955]
[1739983367345,0.8151,2710.8,2710.3,3.68955]
[1739983367845,0.04547466,2710.7,2710.4,3.68941]
[1739983368045,0.04547466,2710.7,2710.4,4.50871]
[1739983368357,0.04537944,2710.6,2710.5,3.68934]
[1739983368529,4.48448,2711.1,2710.5,3.68934]
[1739983368852,0.0457603,2711.0,2710.5,3.68934]
[1739983369346,3.7344303,2711.0,2710.5,3.68934]
[1739983369527,0.0457603,2711.0,2710.5,3.68934]
[1739983369735,0.0457603,2711.0,2710.4,6.1893]
[1739983369930,3.68882,2710.9,2710.4,9.87878]
[1739983370129,3.7344851,2710.9,2710.4,9.87878]
[1739983370339,0.0456651,2710.9,2710.5,7.37862]
[1739983370545,3.68877,2711.0,2710.5,3.68927]
[1739983370752,0.04543563,2710.8,2710.5,3.68927]
[1739983370950,3.68883,2710.9,2710.5,3.68927]
[1739983371156,0.04534041,2710.7,2710.5,3.68927]
[1739983371472,3.68874,2711.0,2710.5,4.46229667]
[1739983371822,3.73439085,2710.9,2710.5,0.77302667]
[1739983372124,0.04553085,2710.9,2710.5,4.46234667]
[1739983372661,4.48444,2711.1,2710.5,4.46234667]
[1739983372874,0.04367752,2710.8,2710.5,4.46234667]
[1739983373071,4.48444,2711.1,2710.5,4.46234667]
[1739983373273,0.0435823,2710.7,2710.6,3.6892]
[1739983373438,4.48453,2711.1,2710.5,4.46237667]
[1739983373642,0.0435823,2710.7,2710.5,3.68935]
[1739983373831,3.68881,2710.9,2710.5,3.68935]
[1739983374039,0.04348706,2710.6,2710.4,6.1893]
[1739983374357,3.68883,2710.9,2710.4,6.1893]
[1739983374553,0.38419968,2711.0,2710.4,9.87877]
[1739983374735,0.04383862,2710.8,2710.5,1.069277]
[1739983374931,0.38419968,2711.0,2710.5,1.069277]
[1739983375134,0.04393383,2710.9,2710.5,4.758607]
[1739983375548,0.04393383,2710.9,2710.5,4.758567]
[1739983376043,3.73280383,2710.9,2710.5,1.069277]
[1739983376857,3.68895,2710.8,2710.4,12.2270474]
[1739983377060,3.68895,2710.8,2710.4,9.05948]
[1739983377247,0.0437434,2710.7,2710.4,9.05948]
[1739983377650,3.68888,2710.9,2710.4,9.05948]
[1739983377960,4.07295968,2711.0,2710.5,3.68934]
[1739983378137,4.07295968,2711.0,2710.5,5.045634]
[1739983378538,7.76171968,2711.0,2710.5,5.045634]
[1739983378734,3.68882,2710.9,2710.5,1.356294]
[1739983379262,3.68901,2710.8,2710.5,1.356294]
[1739983379431,4.07295968,2711.0,2710.5,1.356294]
[1739983379850,3.68887,2710.9,2710.5,1.356294]
[1739983380053,0.38419968,2711.0,2710.6,1.0415694]
[1739983380254,3.68848,2711.2,2710.7,6.8565774]
[1739983380453,0.7851,2711.3,2710.9,3.68873]
[1739983380654,0.7954,2711.5,2711.0,3.1675674]
[1739983380858,0.7954,2712.3,2711.3,3.1675674]
[1739983381065,3.68725,2712.1,2711.5,3.68799]
[1739983381427,3.68714,2712.2,2711.6,3.68778]
[1739983381628,1.52629774,2712.3,2711.6,5.37]
[1739983381865,1.52629774,2712.3,2711.7,0.7961]
[1739983382163,7.37429,2712.2,2711.7,0.7961]
[1739983382325,1.52629774,2712.3,2711.7,0.7961]
[1739983382530,1.52629774,2712.3,2711.7,4.48378]
[1739983382734,3.68712,2712.2,2711.7,0.7961]
[1739983382947,3.68721,2712.1,2711.7,0.7961]
[1739983383347,0.89006277,2712.1,2711.6,5.37]
[1739983383552,0.7766,2711.7,2711.6,5.37]
[1739983383852,3.68786,2711.6,2711.1,5.37]
[1739983384057,3.688,2711.5,2711.1,5.37]
[1739983384456,0.04479099,2711.4,2711.1,5.37]
[1739983384809,0.04479099,2711.4,2711.1,6.67321774]
[1739983384990,0.04479099,2711.4,2711.3,10.6779274]
[1739983385455,4.48489,2712.2,2711.6,3.68783]
[1739983385850,0.04489981,2712.1,2711.6,3.68778]
[1739983386052,0.04489981,2712.1,2711.8,3.68751]
[1739983386286,0.04489981,2712.1,2711.8,4.37301774]
[1739983386486,3.68712,2712.2,2711.6,3.1675674]
[1739983386690,1.55768718,2712.5,2711.5,5.37]
[1739983386989,4.51411,2712.0,2711.5,5.37]
[1739983387171,3.68748,2711.9,2711.5,5.37]
[1739983387376,3.68759,2711.8,2711.3,0.8221]
[1739983387578,3.68785,2711.6,2711.1,5.37]
[1739983387892,3.68785,2711.6,2711.0,3.0]
[1739983388091,0.04473422,2711.5,2711.0,3.0]
[1739983388492,0.04473422,2711.5,2711.0,6.1675674]
[1739983388656,0.04473422,2711.5,2711.4,3.68813]
[1739983388851,0.8268,2712.0,2711.5,0.7644]
[1739983389062,3.68718,2712.1,2711.5,4.45232]
[1739983389290,3.68718,2712.1,2711.5,0.7644]
[1739983389494,3.68718,2712.1,2711.5,4.45233]
[1739983389656,0.04313724,2712.0,2711.5,4.45233]
[1739983390001,0.04313724,2712.0,2711.6,0.88260297]
[1739983390356,3.68752,2711.9,2711.6,0.88260297]
[1739983390590,0.04313724,2712.0,2711.6,0.88260297]
[1739983390793,0.0431494,2711.9,2711.6,0.88260297]
[1739983391097,3.7305994,2711.9,2711.4,0.68556974]
[1739983391283,3.7305994,2711.9,2711.4,4.37361974]
[1739983391284,0.0431494,2711.9,2711.4,4.37361974]
[1739983391595,3.68719,2712.1,2711.4,0.68556974]
[1739983391787,0.04270081,2711.8,2711.6,3.68776]
[1739983391990,0.04270081,2711.8,2711.6,4.49757874]
[1739983392157,0.04270167,2711.7,2711.6,4.53445386]
[1739983392353,4.48678,2712.3,2711.6,4.53445386]
[1739983392555,4.48678,2712.3,2711.6,0.80981874]
[1739983392753,0.04270167,2711.7,2711.6,0.80981874]
[1739983392999,3.68704,2712.2,2711.6,9.86766874]
[1739983393160,3.68717,2712.2,2711.7,1.28676687]
[1739983393858,3.68725,2712.1,2711.7,1.28676687]
[1739983394592,0.7998,2712.3,2711.8,3.68755]
[1739983394887,4.48671,2712.3,2711.8,0.7726]
[1739983395295,0.04323951,2712.2,2711.8,0.7726]
[1739983395492,0.04323951,2712.2,2711.9,0.57470869]
[1739983395672,3.68683,2712.4,2711.9,4.26212869]
[1739983395995,0.8242,2712.6,2711.9,4.26212869]
[1739983395996,0.8242,2712.6,2711.9,0.57470869]
[1739983396295,0.8242,2712.6,2711.8,4.46017]
[1739983396296,0.04314687,2712.3,2711.8,4.46017]
[1739983396496,3.68688,2712.4,2711.8,4.46017]
[1739983396808,3.68711,2712.2,2711.6,6.1259]
[1739983397018,3.73008687,2712.3,2711.6,6.1259]
[1739983397221,0.04323332,2712.1,2711.8,3.68758]
[1739983397419,4.44004037,2712.5,2711.8,5.037687]
[1739983397710,0.04313819,2712.0,2711.8,5.037687]
[1739983397914,3.68699,2712.3,2711.8,1.350107]
[1739983398123,3.68681,2712.4,2711.8,3.68757]
[1739983398298,0.04332845,2712.2,2711.8,3.68757]
[1739983398467,0.04342358,2712.3,2711.8,3.68757]
[1739983398667,0.04323332,2712.1,2711.8,3.68757]
[1739983398919,0.04332845,2712.2,2711.8,3.68757]
[1739983399117,0.04313819,2712.0,2711.8,3.68757]
[1739983399283,0.38439147,2712.1,2711.8,5.35443274]
[1739983399490,0.04304305,2711.9,2711.8,5.35443274]
[1739983399797,0.38439147,2712.1,2711.9,3.68744]
[1739983400599,0.38439147,2712.1,2712.0,4.46541]
[1739983400912,3.68652,2712.6,2712.1,3.68709]
[1739983401816,3.68652,2712.6,2712.0,7.6329774]
[1739983401817,3.68665,2712.5,2712.0,0.7781]
[1739983402000,3.68642,2712.7,2712.1,3.68716]
[1739983402185,3.6865,2712.6,2712.1,3.68716]
[1739983402605,3.73049126,2712.6,2712.1,3.68716]
[1739983402771,0.04399126,2712.6,2712.1,8.726585]
[1739983403131,0.04399126,2712.6,2712.2,3.68704]
[1739983403330,0.04399126,2712.6,2712.4,3.68668]
[1739983403629,3.68629,2712.8,2712.2,5.37]
[1739983403924,0.04389616,2712.5,2712.2,5.37]
[1739983404118,7.37263,2712.8,2712.2,10.49246124]
[1739983404273,0.04380105,2712.4,2712.2,10.49244124]
[1739983404465,3.68629,2712.8,2712.2,10.49244124]
[1739983404669,0.04370594,2712.3,2712.2,10.49244124]
[1739983404888,3.68629,2712.8,2712.2,10.49244124]
[1739983405104,0.04370594,2712.3,2712.2,6.80550124]
[1739983405402,3.68624,2712.8,2712.2,11.32484124]
[1739983405609,3.68624,2712.8,2712.3,1.50118912]
[1739983405823,3.68624,2712.8,2712.3,5.18808912]
[1739983406175,0.04408636,2712.7,2712.3,5.18808912]
[1739983406507,3.68624,2712.8,2712.3,5.18808912]
[1739983406809,0.04399126,2712.6,2712.3,5.18808912]
[1739983406982,3.68624,2712.8,2712.3,5.18808912]
[1739983407182,3.68624,2712.8,2712.2,7.63780124]
[1739983407183,0.04389616,2712.5,2712.2,7.63780124]
[1739983407378,0.04389616,2712.5,2712.2,11.32478124]
[1739983407584,0.04380105,2712.4,2712.2,11.32478124]
[1739983407976,3.68645,2712.7,2712.2,11.32478124]
[1739983408177,0.04370594,2712.3,2712.2,11.32478124]
[1739983408409,0.04370594,2712.3,2712.2,7.63780124]
[1739983408610,3.68651,2712.6,2712.2,11.32484124]
[1739983408976,0.04389616,2712.5,2712.2,11.32484124]
[1739983409220,3.68638,2712.7,2712.2,11.32484124]
[1739983409592,3.68665,2712.5,2712.2,6.2023]
[1739983409792,3.68665,2712.5,2712.2,5.37]
[1739983410195,0.04399215,2712.4,2712.2,5.37]
[1739983410778,0.04399215,2712.4,2712.2,9.05695]
[1739983410978,0.04408339,2712.3,2712.2,9.05695]
[1739983411174,0.04408339,2712.3,2712.2,10.72964774]
[1739983411380,3.68627,2712.8,2712.3,3.68688]
[1739983411607,4.46498,2712.9,2712.2,7.04269774]
[1739983411608,3.68651,2712.6,2712.2,7.04269774]
[1739983411891,3.68638,2712.7,2712.2,10.72971774]
[1739983412813,0.7788,2712.9,2712.2,10.72967774]
[1739983412985,7.37261,2712.8,2712.2,10.72967774]
[1739983413186,3.68636,2712.7,2712.2,10.72967774]
[1739983413424,0.7788,2712.9,2712.3,4.5236372]
[1739983413713,0.7788,2712.9,2712.4,3.68674]
[1739983413897,0.04489658,2712.8,2712.5,0.798]
[1739983414281,3.68603,2713.0,2712.5,0.798]
[1739983414481,0.04461381,2712.7,2712.5,0.798]
[1739983414705,0.8286,2713.1,2712.5,5.37029944]
[1739983414900,0.04451872,2712.6,2712.5,5.37029712]
[1739983415110,3.68582,2713.1,2712.5,1.64691446]
[1739983415318,0.04459916,2712.6,2712.5,1.64691446]
[1739983415486,3.68582,2713.1,2712.5,5.33354446]
[1739983415680,3.68582,2713.1,2712.6,0.90202345]
[1739983416022,3.68569,2713.2,2712.6,4.58849345]
[1739983416504,3.68589,2713.1,2712.6,0.90202345]
[1739983416710,3.6859,2713.1,2712.6,0.90202345]
[1739983417099,0.04500628,2713.0,2712.6,0.90202345]
[1739983418013,3.73096628,2713.0,2712.6,0.90202345]
[1739983418318,3.73096628,2713.0,2712.7,0.79189379]
[1739983418319,0.04500628,2713.0,2712.7,0.79189379]
[1739983418700,3.68587,2713.1,2712.7,0.79189379]
[1739983419026,0.04469672,2712.9,2712.7,0.79189379]
[1739983419323,0.04460164,2712.8,2712.7,0.79189379]
[1739983419688,3.68604,2713.0,2712.7,0.79189379]
[1739983419888,0.04460164,2712.8,2712.5,7.01691446]
[1739983420112,3.68594,2713.1,2712.5,10.70348446]
[1739983420309,0.04457994,2712.7,2712.5,10.70348446]
[1739983420523,3.68604,2713.0,2712.5,10.70348446]
[1739983420722,0.04448484,2712.6,2712.5,10.70348446]
[1739983420927,0.8286,2713.3,2712.5,10.70348446]
[1739983421128,3.6855,2713.4,2712.6,7.9612485]
[1739983421439,3.68567,2713.3,2712.7,3.68627]
[1739983421932,3.6855,2713.4,2712.8,0.8326]
[1739983422142,3.68569,2713.2,2712.8,0.8326]
[1739983422330,1.48746053,2713.5,2712.9,0.451887]
[1739983422331,3.68567,2713.3,2712.9,0.451887]
[1739983422837,3.68576,2713.2,2712.9,0.451887]
[1739983423313,3.68576,2713.2,2712.8,0.8326]
[1739983424003,3.68566,2713.3,2712.8,0.8326]
[1739983424403,3.73090899,2713.2,2712.8,0.8326]
[1739983425620,3.68586,2713.1,2712.8,0.8326]
[1739983425942,0.0434612,2713.0,2712.8,0.8326]
[1739983426103,0.0434612,2713.0,2712.8,2.24529959]
[1739983426533,0.0434612,2713.0,2712.9,3.68609]
[1739983426716,4.43987,2713.7,2713.1,3.68573]
[1739983426915,4.43987,2713.7,2713.1,12.74147]
[1739983427113,0.03892515,2713.6,2713.1,9.05573]
[1739983427310,0.03892515,2713.6,2713.2,1.710973]
[1739983427716,0.03892515,2713.6,2713.2,5.396633]
[1739983428141,0.03892515,2713.6,2713.3,3.68552]
[1739983428704,7.36963,2713.9,2713.3,3.68552]
[1739983429042,0.73477376,2713.9,2713.4,3.68541]
[1739983429229,0.03943673,2713.8,2713.4,4.5936003]
[1739983429546,0.03943673,2713.8,2713.4,0.9081903]
[1739983429842,3.72430673,2713.8,2713.4,0.9081903]
[1739983430057,0.7568,2714.0,2713.2,0.8054]
[1739983430058,3.68529,2713.5,2713.2,0.8054]
[1739983430404,3.68505,2713.7,2713.2,0.8054]
[1739983431043,0.7657,2713.6,2713.1,9.0558]
[1739983431409,0.03922928,2713.5,2713.1,9.0558]
[1739983431843,0.03922928,2713.5,2713.1,12.74152]
[1739983432137,0.03922928,2713.5,2713.2,5.034862]
[1739983432641,4.49179,2713.8,2713.2,5.034862]
[1739983433021,4.49179,2713.8,2713.3,3.68553]
[1739983433242,0.8069,2713.8,2713.3,3.68553]
[1739983433447,0.72347183,2714.1,2713.4,0.779]
[1739983433613,4.40801183,2714.1,2713.5,3.68521]
[1739983433812,0.03969309,2714.0,2713.5,4.500175]
[1739983434040,0.03969309,2714.0,2713.5,4.500155]
[1739983434209,0.03969309,2714.0,2713.6,3.68513]
[1739983434412,3.68477,2713.9,2713.5,0.814965]
[1739983434610,3.72438309,2714.0,2713.5,0.814965]
[1739983434810,0.03959809,2713.9,2713.6,0.8964635]
[1739983436340,0.03959809,2713.9,2713.4,4.46428]
[1739983436543,0.03959809,2713.9,2713.4,8.14961]
[1739983436841,3.72439809,2713.9,2713.4,0.779]
[1739983437064,0.03959809,2713.9,2713.4,4.46441]
[1739983437408,3.72434809,2713.9,2713.4,4.46441]
[1739983437612,3.68487,2713.8,2713.5,0.446441]
[1739983437839,3.68487,2713.8,2713.4,0.779]
[1739983438025,0.03959568,2713.7,2713.4,0.779]
[1739983438744,3.68475,2713.9,2713.4,0.779]
[1739983438951,0.03983387,2713.6,2713.4,0.779]
[1739983439114,3.68475,2713.9,2713.4,4.46432]
[1739983439412,0.0400239,2713.8,2713.5,1.351979]
[1739983440666,3.7249539,2713.8,2713.4,0.779]
[1739983442220,0.0400239,2713.8,2713.4,4.46434]
[1739983442419,3.7249639,2713.8,2713.4,0.779]
[1739983442869,7.4099239,2713.8,2713.4,0.779]
[1739983443092,3.68501,2713.7,2713.4,0.779]
[1739983443382,0.03837468,2713.6,2713.4,0.779]
[1739983444539,0.03837468,2713.6,2713.4,4.46441]
[1739983444884,0.03827966,2713.5,2713.4,5.9513402]
[1739983445077,7.3696,2713.9,2713.4,5.9513402]
[1739983445239,3.72349471,2713.8,2713.4,0.779]
[1739983445580,0.03856471,2713.8,2713.4,0.779]
[1739983445877,3.72345471,2713.8,2713.4,0.779]
[1739983447879,7.40840471,2713.8,2713.4,0.779]
[1739983448040,3.72345471,2713.8,2713.4,0.779]
[1739983448236,3.72345471,2713.8,2713.4,1.8973822]
[1739983450480,7.40843471,2713.8,2713.4,1.8973822]
[1739983450692,7.40842471,2713.8,2713.4,1.8973822]
[1739983450854,3.72345471,2713.8,2713.4,1.8973822]
[1739983451291,0.03856471,2713.8,2713.4,5.5827722]
[1739983451452,0.03856471,2713.8,2713.5,1.46383122]
[1739983451663,3.68483,2713.9,2713.5,1.46383122]
[1739983451846,0.03678655,2713.8,2713.5,1.46383122]
[1739983452247,3.68465,2714.0,2713.5,1.46383122]
[1739983452545,0.03690836,2713.9,2713.5,1.46383122]
[1739983452745,0.03690836,2713.9,2713.6,0.70466034]
[1739983453141,3.72169836,2713.9,2713.6,0.70466034]
[1739983453346,0.03690836,2713.9,2713.6,0.70466034]
[1739983454257,4.51724,2714.2,2713.6,0.70466034]
[1739983454465,3.68465,2714.0,2713.4,4.46441]
[1739983454660,0.03689288,2713.9,2713.5,3.68527]
[1739983455753,4.51721,2714.2,2713.5,3.68527]
[1739983456060,3.68461,2714.0,2713.5,3.68527]
[1739983456262,0.03716396,2713.9,2713.5,3.68527]
[1739983456472,3.72194396,2713.9,2713.5,1.351974]
[1739983456877,0.03716396,2713.9,2713.5,1.351974]
[1739983457491,3.72190396,2713.9,2713.5,1.351974]
[1739983457662,3.72190396,2713.9,2713.4,4.4644]
[1739983457863,3.68496,2713.8,2713.4,0.779]
[1739983458082,0.03697393,2713.7,2713.4,0.779]
[1739983458285,3.68474,2713.9,2713.4,0.779]
[1739983458482,0.03706895,2713.8,2713.4,4.46441]
[1739983458685,0.03706895,2713.8,2713.5,1.351985]
[1739983461486,3.72195895,2713.8,2713.5,1.351985]
[1739983462287,0.03706895,2713.8,2713.5,3.68527]
[1739983462489,3.68454,2714.1,2713.5,3.68527]
[1739983462799,3.68461,2714.0,2713.5,3.6852]
[1739983463414,3.68454,2714.1,2713.5,3.6852]
[1739983464385,3.68454,2714.1,2713.6,3.68512]
[1739983464700,3.68465,2714.0,2713.6,1.351932]
[1739983464889,4.51714,2714.2,2713.8,0.7518]
[1739983465291,0.03735397,2714.1,2713.8,0.7518]
[1739983465485,0.7292532,2714.3,2713.8,4.4366]
[1739983465690,0.03761122,2714.2,2713.8,4.4366]
[1739983465908,3.68436,2714.2,2713.8,1.6991442]
[1739983466090,0.03751623,2714.1,2713.8,1.6991442]
[1739983466407,0.03751623,2714.1,2714.0,3.68459]
[1739983466582,0.03751623,2714.1,2714.0,4.47859]
[1739983466801,3.6836,2714.8,2714.2,3.68431]
[1739983466997,4.48567,2714.9,2714.2,3.68422]
[1739983467199,3.68389,2714.6,2714.1,5.37]
[1739983467522,3.68407,2714.4,2714.1,5.37]
[1739983467687,0.03825469,2714.3,2714.1,5.37]